fUSD/lending_fUSD_20250923
["ID","MTS","AMOUNT","RATE_DAILY","PERIOD"]
[387136530,1758588722044,-796.01,0.00022463,2]
[387136531,1758588722053,-400.0,0.00022463,2]
[387136532,1758588722062,-431.35,0.00022463,2]
[387136533,1758588722072,-2335.81,0.00022463,2]
[387136534,1758588722081,-400.0,0.00022463,2]
[387136535,1758588722091,-1029.46,0.00022463,2]
[387136536,1758588722105,-465.65,0.00022463,2]
[387136537,1758588722114,-400.0,0.00022463,2]
[387136538,1758588722123,-1832.67,0.00022463,2]
[387136539,1758588722133,-1616.25,0.00022463,2]
[387136540,1758588722142,-400.0,0.00022463,2]
[387136541,1758588722152,-400.0,0.00022463,2]
[387136542,1758588722162,-836.01,0.00022463,2]
[387136543,1758588722171,-400.0,0.00022463,2]
[387136544,1758588722182,-400.0,0.00022463,2]
[387136545,1758588722192,-400.0,0.00022463,2]
[387136546,1758588722200,-400.0,0.00022463,2]
[387136547,1758588722209,-1061.09,0.00022463,2]
[387136548,1758588722219,-522.0,0.00022463,2]
[387136549,1758588722229,-521.86495786,0.00022463,2]
[387136550,1758588722238,-486.45,0.00022463,2]
[387136551,1758588722247,-400.0,0.00022463,2]
[387136552,1758588722256,-643.61427587,0.00022463,2]
[387136553,1758588722267,-500.0,0.00022463,2]
[387136554,1758588722279,-3384.62,0.00022463,2]
[387136555,1758588722289,-400.0,0.00022463,2]
[387136556,1758588722301,-2060.76,0.00022463,2]
[387136557,1758588722318,-530.11,0.00022463,2]
[387136558,1758588722327,-530.0,0.00022463,2]
[387136559,1758588722338,-922.13,0.00022463,2]
[387136560,1758588722347,-400.0,0.00022463,2]
[387136561,1758588722356,-754.65,0.00022463,2]
[387136562,1758588722366,-400.0,0.00022463,2]
[387136563,1758588722378,-400.0,0.00022463,2]
[387136564,1758588722387,-400.0,0.00022463,2]
[387136565,1758588722398,-508.94,0.00022463,2]
[387136566,1758588722409,-400.0,0.00022463,2]
[387136567,1758588722419,-1169.65,0.00022463,2]
[387136568,1758588722430,-1903.352168,0.00022463,2]
[387136569,1758588722440,-72906.03116033,0.00022464,2]
[387136570,1758588722450,-400.0,0.00022464,2]
[387136571,1758588722462,-400.0,0.00022464,2]
[387136572,1758588722473,-400.0,0.00022464,2]
[387136573,1758588722483,-400.0,0.00022464,2]
[387136574,1758588722494,-400.0,0.00022464,2]
[387136575,1758588722505,-400.0,0.00022464,2]
[387136576,1758588722515,-400.0,0.00022464,2]
[387136577,1758588722525,-674.13,0.00022464,2]
[387136578,1758588722535,-400.0,0.00022464,2]
[387136579,1758588722545,-490.65,0.00022464,2]
[387136580,1758588722555,-400.0,0.00022464,2]
[387136581,1758588722565,-410.63,0.00022464,2]
[387136582,1758588722574,-400.0,0.00022464,2]
[387136583,1758588722584,-750.91,0.00022464,2]
[387136584,1758588722594,-495.61,0.00022464,2]
[387136585,1758588722604,-554.46,0.00022464,2]
[387136586,1758588722613,-544.47,0.00022464,2]
[387136587,1758588722624,-859.26,0.00022464,2]
[387136588,1758588722633,-400.0,0.00022464,2]
[387136589,1758588722643,-660.35,0.00022464,2]
[387136590,1758588722652,-410.37,0.00022464,2]
[387136591,1758588722663,-313.7,0.00022464,2]
[387136592,1758588722672,-1016.77,0.00022464,2]
[387136593,1758588722682,-400.0,0.00022464,2]
[387136594,1758588722692,-400.0,0.00022464,2]
[387136595,1758588722703,-484.13,0.00022464,2]
[387136596,1758588722713,-682.51,0.00022464,2]
[387136597,1758588722723,-400.0,0.00022464,2]
[387136598,1758588722732,-179.41,0.00022464,2]
[387136599,1758588722742,-588.84,0.00022464,2]
[387136600,1758588722752,-527.41,0.00022464,2]
[387136601,1758588722761,-155.84,0.00022464,2]
[387136602,1758588722771,-769.14,0.00022464,2]
[387136603,1758588722780,-400.0,0.00022464,2]
[387136604,1758588722790,-400.0,0.00022464,2]
[387136605,1758588722800,-400.0,0.00022464,2]
[387136606,1758588722809,-450.01,0.00022464,2]
[387136607,1758588722819,-400.0,0.00022464,2]
[387136608,1758588722828,-400.0,0.00022464,2]
[387136609,1758588722838,-400.0,0.00022464,2]
[387136610,1758588722848,-495.05,0.00022464,2]
[387136611,1758588722858,-593.36,0.00022464,2]
[387136612,1758588722867,-445.15,0.00022464,2]
[387136613,1758588722877,-769.03,0.00022464,2]
[387136614,1758588722889,-537.23,0.00022464,2]
[387136615,1758588722898,-400.0,0.00022464,2]
[387136616,1758588722908,-400.0,0.00022464,2]
[387136617,1758588722917,-400.0,0.00022464,2]
[387136618,1758588722930,-400.0,0.00022464,2]
[387136619,1758588722939,-1440.81,0.00022464,2]
[387136620,1758588722948,-2249.616654,0.00022464,2]
[387136621,1758588722958,-400.0,0.00022464,2]
[387136622,1758588722967,-501.01,0.00022464,2]
[387136623,1758588722977,-493.6,0.00022464,2]
[387136624,1758588722986,-400.0,0.00022464,2]
[387136625,1758588722995,-969.65,0.00022464,2]
[387136626,1758588723006,-433.42,0.00022464,2]
[387136627,1758588723016,-577.66,0.00022464,2]
[387136628,1758588723025,-803.42,0.00022464,2]
[387136629,1758588723035,-651.06,0.00022464,2]
[387136630,1758588723045,-400.0,0.00022464,2]
[387136631,1758588723055,-414.87,0.00022464,2]
[387136632,1758588723065,-602.08,0.00022464,2]
[387136633,1758588723074,-400.0,0.00022464,2]
[387136634,1758588723086,-400.0,0.00022464,2]
[387136635,1758588723097,-697.68,0.00022464,2]
[387136636,1758588723111,-1169.47,0.00022464,2]
[387136637,1758588723121,-400.0,0.00022464,2]
[387136638,1758588723132,-514.36,0.00022464,2]
[387136639,1758588723143,-440.26,0.00022464,2]
[387136640,1758588723153,-593.88,0.00022464,2]
[387136641,1758588723163,-1060.97,0.00022464,2]
[387136642,1758588723172,-743.55,0.00022464,2]
[387136643,1758588723185,-620.51,0.00022464,2]
[387136644,1758588723196,-400.0,0.00022464,2]
[387136645,1758588723206,-695.32,0.00022464,2]
[387136646,1758588723216,-447.81,0.00022464,2]
[387136647,1758588723226,-909.99,0.00022464,2]
[387136648,1758588723236,-400.0,0.00022464,2]
[387136649,1758588723247,-400.0,0.00022464,2]
[387136650,1758588723257,-609.54,0.00022464,2]
[387136651,1758588723266,-400.0,0.00022464,2]
[387136652,1758588723275,-503.16,0.00022464,2]
[387136653,1758588723285,-652.42,0.00022464,2]
[387136654,1758588723295,-1926.15,0.00022464,2]
[387136655,1758588723305,-808.98,0.00022464,2]
[387136656,1758588723315,-997.93,0.00022464,2]
[387136657,1758588723325,-2763.9,0.00022464,2]
[387136658,1758588723334,-822.69,0.00022464,2]
[387136659,1758588723344,-1231.62,0.00022464,2]
[387136660,1758588723353,-435.88,0.00022464,2]
[387136661,1758588723363,-400.0,0.00022464,2]
[387136662,1758588723374,-1881.3,0.00022464,2]
[387136663,1758588723384,-400.0,0.00022464,2]
[387136664,1758588723395,-1082.02,0.00022464,2]
[387136665,1758588723405,-703.54,0.00022464,2]
[387136666,1758588723414,-471.61,0.00022464,2]
[387136667,1758588723425,-698.95,0.00022464,2]
[387136668,1758588723435,-422.43,0.00022464,2]
[387136669,1758588723445,-665.52,0.00022464,2]
[387136670,1758588723455,-1517.07,0.00022464,2]
[387136671,1758588723464,-1290.57,0.00022464,2]
[387136672,1758588723474,-599.8,0.00022464,2]
[387136673,1758588723484,-864.51,0.00022464,2]
[387136674,1758588723494,-700.22,0.00022464,2]
[387136675,1758588723503,-578.19,0.00022464,2]
[387136676,1758588723513,-217.31,0.00022464,2]
[387136677,1758588723523,-1270.12,0.00022464,2]
[387136678,1758588723533,-529.42,0.00022464,2]
[387136679,1758588723542,-1179.29,0.00022464,2]
[387136680,1758588723552,-790.42,0.00022464,2]
[387136681,1758588723562,-546.07,0.00022464,2]
[387136682,1758588723572,-796.17,0.00022464,2]
[387136683,1758588723583,-1797.38,0.00022464,2]
[387136684,1758588723593,-1067.68,0.00022464,2]
[387136685,1758588723603,-685.94,0.00022464,2]
[387136686,1758588723614,-400.0,0.00022464,2]
[387136687,1758588723624,-400.0,0.00022464,2]
[387136688,1758588723634,-4410.79,0.00022464,2]
[387136689,1758588723644,-400.0,0.00022464,2]
[387136690,1758588723654,-400.0,0.00022464,2]
[387136691,1758588723664,-635.32,0.00022464,2]
[387136692,1758588723673,-825.39,0.00022464,2]
[387136693,1758588723684,-1159.17,0.00022464,2]
[387136694,1758588723694,-3621.17,0.00022464,2]
[387136695,1758588723705,-536.01,0.00022464,2]
[387136696,1758588723715,-1555.92,0.00022464,2]
[387136697,1758588723725,-685.82,0.00022464,2]
[387136698,1758588723737,-400.0,0.00022464,2]
[387136699,1758588723747,-1688.59,0.00022464,2]
[387136700,1758588723757,-533.54,0.00022464,2]
[387136701,1758588723767,-3199.7,0.00022464,2]
[387136702,1758588723777,-400.0,0.00022464,2]
[387136703,1758588723787,-5083.46,0.00022464,2]
[387136704,1758588723797,-532.7,0.00022464,2]
[387136705,1758588723808,-726.03,0.00022464,2]
[387136706,1758588723818,-1692.11,0.00022464,2]
[387136707,1758588723828,-633.11,0.00022464,2]
[387136708,1758588723838,-411.61,0.00022464,2]
[387136709,1758588723848,-648.3,0.00022464,2]
[387136710,1758588723858,-857.03,0.00022464,2]
[387136711,1758588723868,-722.01,0.00022464,2]
[387136712,1758588723877,-1108.24,0.00022464,2]
[387136713,1758588723887,-464.86,0.00022464,2]
[387136714,1758588723897,-2367.09,0.00022464,2]
[387136715,1758588723906,-400.0,0.00022464,2]
[387136716,1758588723916,-1636.84,0.00022464,2]
[387136717,1758588723927,-2136.91,0.00022464,2]
[387136718,1758588723937,-555.5,0.00022464,2]
[387136719,1758588723949,-914.0,0.00022464,2]
[387136720,1758588723958,-887.03,0.00022464,2]
[387136721,1758588723968,-4785.63,0.00022464,2]
[387136722,1758588723979,-1767.45,0.00022464,2]
[387136723,1758588723989,-1514.68,0.00022464,2]
[387136724,1758588723999,-553.9,0.00022464,2]
[387136725,1758588724010,-644.46,0.00022464,2]
[387136726,1758588724020,-434.59,0.00022464,2]
[387136727,1758588724031,-1093.45,0.00022464,2]
[387136728,1758588724041,-400.0,0.00022464,2]
[387136729,1758588724052,-2259.45,0.00022464,2]
[387136730,1758588724062,-1283.49,0.00022464,2]
[387136731,1758588724072,-1392.04,0.00022464,2]
[387136732,1758588724082,-579.07,0.00022464,2]
[387136733,1758588724092,-400.0,0.00022464,2]
[387136734,1758588724105,-400.0,0.00022464,2]
[387136735,1758588724115,-586.63,0.00022464,2]
[387136736,1758588724125,-852.34,0.00022464,2]
[387136737,1758588724135,-400.0,0.00022464,2]
[387136738,1758588724145,-602.29,0.00022464,2]
[387136739,1758588724155,-2120.46,0.00022464,2]
[387136740,1758588724166,-400.0,0.00022464,2]
[387136741,1758588724176,-730.17,0.00022464,2]
[387136742,1758588724186,-713.11,0.00022464,2]
[387136743,1758588724197,-400.0,0.00022464,2]
[387136744,1758588724207,-824.24,0.00022464,2]
[387136745,1758588724216,-2178.93,0.00022464,2]
[387136746,1758588724227,-563.68,0.00022464,2]
[387136747,1758588724237,-400.0,0.00022464,2]
[387136748,1758588724248,-624.27,0.00022464,2]
[387136749,1758588724258,-1279.8,0.00022464,2]
[387136750,1758588724268,-400.0,0.00022464,2]
[387136751,1758588724279,-400.0,0.00022464,2]
[387136752,1758588724289,-2500.0,0.00022464,2]
[387136753,1758588724300,-1091.5747296,0.00022464,2]
[387136754,1758588724310,-400.0,0.00022465,2]
[387136755,1758588724320,-400.0,0.00022465,2]
[387136756,1758588724331,-371.52,0.00022465,2]
[387136757,1758588724341,-400.0,0.00022465,2]
[387136758,1758588724352,-400.0,0.00022465,2]
[387136759,1758588724364,-400.0,0.00022465,2]
[387136760,1758588724374,-400.0,0.00022465,2]
[387136761,1758588724384,-400.0,0.00022465,2]
[387136762,1758588724394,-400.0,0.00022465,2]
[387136763,1758588724403,-400.0,0.00022465,2]
[387136764,1758588724413,-400.0,0.00022465,2]
[387136765,1758588724422,-555.17,0.00022465,2]
[387136766,1758588724432,-491.16,0.00022465,2]
[387136767,1758588724442,-400.0,0.00022465,2]
[387136768,1758588724452,-400.0,0.00022465,2]
[387136769,1758588724462,-400.0,0.00022465,2]
[387136770,1758588724472,-416.06,0.00022465,2]
[387136771,1758588724482,-439.92,0.00022465,2]
[387136772,1758588724492,-154.65,0.00022465,2]
[387136773,1758588724703,-400.0,0.00022465,2]
[387136774,1758588724715,-400.0,0.00022465,2]
[387136775,1758588724725,-428.44,0.00022465,2]
[387136776,1758588724735,-400.0,0.00022465,2]
[387136777,1758588724744,-400.0,0.00022465,2]
[387136778,1758588724754,-400.0,0.00022465,2]
[387136779,1758588724763,-400.0,0.00022465,2]
[387136780,1758588724772,-400.0,0.00022465,2]
[387136781,1758588724782,-420.82,0.00022465,2]
[387136782,1758588724792,-400.0,0.00022465,2]
[387136783,1758588724801,-400.0,0.00022465,2]
[387136784,1758588724810,-754.63,0.00022465,2]
[387136785,1758588724819,-403.38,0.00022465,2]
[387136786,1758588724829,-917.82,0.00022465,2]
[387136787,1758588724839,-165.72,0.00022465,2]
[387136788,1758588724848,-400.0,0.00022465,2]
[387136789,1758588724858,-504.07,0.00022465,2]
[387136790,1758588724867,-535.33,0.00022465,2]
[387136791,1758588724876,-414.45,0.00022465,2]
[387136792,1758588724885,-597.93,0.00022465,2]
[387136793,1758588724894,-400.0,0.00022465,2]
[387136794,1758588724903,-599.79,0.00022465,2]
[387136795,1758588724913,-512.84,0.00022465,2]
[387136796,1758588724922,-400.0,0.00022465,2]
[387136797,1758588724932,-830.32,0.00022465,2]
[387136798,1758588724942,-400.0,0.00022465,2]
[387136799,1758588724951,-400.0,0.00022465,2]
[387136800,1758588724965,-400.0,0.00022465,2]
[387136801,1758588724976,-400.0,0.00022465,2]
[387136802,1758588724986,-877.74,0.00022465,2]
[387136803,1758588724996,-454.04,0.00022465,2]
[387136804,1758588725006,-944.31,0.00022465,2]
[387136805,1758588725017,-400.0,0.00022465,2]
[387136806,1758588725027,-866.7,0.00022465,2]
[387136807,1758588725036,-400.0,0.00022465,2]
[387136808,1758588725048,-983.28,0.00022465,2]
[387136809,1758588725059,-400.0,0.00022465,2]
[387136810,1758588725069,-722.94,0.00022465,2]
[387136811,1758588725079,-400.0,0.00022465,2]
[387136812,1758588725090,-542.91,0.00022465,2]
[387136813,1758588725104,-400.0,0.00022465,2]
[387136814,1758588725114,-559.02,0.00022465,2]
[387136815,1758588725124,-531.68,0.00022465,2]
[387136816,1758588725136,-400.0,0.00022465,2]
[387136817,1758588725148,-682.63,0.00022465,2]
[387136818,1758588725158,-400.0,0.00022465,2]
[387136819,1758588725167,-461.64,0.00022465,2]
[387136820,1758588725179,-400.0,0.00022465,2]
[387136821,1758588725188,-671.51,0.00022465,2]
[387136822,1758588725197,-527.40979587,0.00022465,2]
[387136823,1758588725208,-404.72,0.00022465,2]
[387136824,1758588725218,-281.53,0.00022465,2]
[387136825,1758588725227,-607.71,0.00022465,2]
[387136826,1758588725236,-400.0,0.00022465,2]
[387136827,1758588725246,-400.0,0.00022465,2]
[387136828,1758588725257,-421.51,0.00022465,2]
[387136829,1758588725267,-965.94,0.00022465,2]
[387136830,1758588725276,-596.18,0.00022465,2]
[387136831,1758588725286,-400.0,0.00022465,2]
[387136832,1758588725296,-400.0,0.00022465,2]
[387136833,1758588725307,-417.6,0.00022465,2]
[387136834,1758588725317,-779.83,0.00022465,2]
[387136835,1758588725326,-400.0,0.00022465,2]
[387136836,1758588725335,-400.0,0.00022465,2]
[387136837,1758588725345,-400.0,0.00022465,2]
[387136838,1758588725354,-720.23,0.00022465,2]
[387136839,1758588725363,-400.0,0.00022465,2]
[387136840,1758588725372,-432.08,0.00022465,2]
[387136841,1758588725381,-926.5,0.00022465,2]
[387136842,1758588725390,-400.0,0.00022465,2]
[387136843,1758588725400,-453.42,0.00022465,2]
[387136844,1758588725409,-446.19,0.00022465,2]
[387136845,1758588725418,-400.0,0.00022465,2]
[387136846,1758588725428,-499.27,0.00022465,2]
[387136847,1758588725438,-415.36,0.00022465,2]
[387136848,1758588725448,-400.0,0.00022465,2]
[387136849,1758588725457,-1064.17,0.00022465,2]
[387136850,1758588725467,-400.0,0.00022465,2]
[387136851,1758588725476,-400.0,0.00022465,2]
[387136852,1758588725485,-400.0,0.00022465,2]
[387136853,1758588725494,-315.42,0.00022465,2]
[387136854,1758588725504,-428.67,0.00022465,2]
[387136855,1758588725514,-183.24,0.00022465,2]
[387136856,1758588725523,-427.84,0.00022465,2]
[387136857,1758588725532,-400.0,0.00022465,2]
[387136858,1758588725542,-400.0,0.00022465,2]
[387136859,1758588725552,-715.39,0.00022465,2]
[387136860,1758588725561,-515.86,0.00022465,2]
[387136861,1758588725571,-400.0,0.00022465,2]
[387136862,1758588725582,-400.0,0.00022465,2]
[387136863,1758588725592,-1049.53,0.00022465,2]
[387136864,1758588725602,-400.0,0.00022465,2]
[387136865,1758588725611,-400.0,0.00022465,2]
[387136866,1758588725621,-400.0,0.00022465,2]
[387136867,1758588725631,-669.85,0.00022465,2]
[387136868,1758588725641,-524.43,0.00022465,2]
[387136869,1758588725650,-480.73,0.00022465,2]
[387136870,1758588725660,-418.66,0.00022465,2]
[387136871,1758588725670,-400.0,0.00022465,2]
[387136872,1758588725680,-645.11,0.00022465,2]
[387136873,1758588725689,-521.7,0.00022465,2]
[387136874,1758588725698,-3259.34,0.00022465,2]
[387136875,1758588725707,-400.0,0.00022465,2]
[387136876,1758588725717,-400.0,0.00022465,2]
[387136877,1758588725727,-819.08,0.00022465,2]
[387136878,1758588725737,-400.0,0.00022465,2]
[387136879,1758588725747,-527.41,0.00022465,2]
[387136880,1758588725756,-711.41,0.00022465,2]
[387136881,1758588725766,-400.0,0.00022465,2]
[387136882,1758588725775,-707.11,0.00022465,2]
[387136883,1758588725785,-4823.52,0.00022465,2]
[387136884,1758588725795,-1811.93,0.00022465,2]
[387136885,1758588725805,-658.31,0.00022465,2]
[387136886,1758588725816,-1161.68,0.00022465,2]
[387136887,1758588725825,-751.69,0.00022465,2]
[387136888,1758588725834,-532.84,0.00022465,2]
[387136889,1758588725845,-760.3,0.00022465,2]
[387136890,1758588725855,-259.6,0.00022465,2]
[387136891,1758588725864,-427.52,0.00022465,2]
[387136892,1758588725875,-400.0,0.00022465,2]
[387136893,1758588725886,-450.15,0.00022465,2]
[387136894,1758588725896,-500.42,0.00022465,2]
[387136895,1758588725907,-535.91,0.00022465,2]
[387136896,1758588725917,-440.64,0.00022465,2]
[387136897,1758588725927,-839.22,0.00022465,2]
[387136898,1758588725936,-1017.53,0.00022465,2]
[387136899,1758588725945,-400.0,0.00022465,2]
[387136900,1758588725954,-9183.84,0.00022465,2]
[387136901,1758588725963,-400.0,0.00022465,2]
[387136902,1758588725973,-400.0,0.00022465,2]
[387136903,1758588725982,-451.23,0.00022465,2]
[387136904,1758588725992,-400.0,0.00022465,2]
[387136905,1758588726001,-894.16,0.00022465,2]
[387136906,1758588726010,-683.2,0.00022465,2]
[387136907,1758588726019,-1123.88,0.00022465,2]
[387136908,1758588726029,-406.45,0.00022465,2]
[387136909,1758588726038,-1005.19,0.00022465,2]
[387136910,1758588726047,-808.52,0.00022465,2]
[387136911,1758588726056,-1110.73,0.00022465,2]
[387136912,1758588726065,-400.0,0.00022465,2]
[387136913,1758588726075,-1205.76,0.00022465,2]
[387136914,1758588726084,-400.0,0.00022465,2]
[387136915,1758588726093,-741.22,0.00022465,2]
[387136916,1758588726106,-2300.0,0.00022466,2]
[387136917,1758588726115,-700.0,0.00022466,2]
[387136918,1758588726124,-500.0,0.00022473,2]
[387136919,1758588726133,-500.0,0.00022473,2]
[387136920,1758588726143,-500.17739676,0.00022473,2]
[387136921,1758588726152,-500.0,0.00022499,2]
[387136922,1758588726161,-174.32,0.00022499,2]
[387136923,1758588726170,-1743.99,0.000225,2]
[387136924,1758588726181,-2000.0,0.000225,2]
[387136925,1758588726191,-2000.0,0.000225,2]
[387136926,1758588726202,-2000.0,0.000225,2]
[387136927,1758588726211,-2000.0,0.000225,2]
[387136928,1758588726221,-2000.01,0.000225,2]
[387136929,1758588726232,-2000.0,0.000225,2]
[387136930,1758588726242,-2000.0,0.000225,2]
[387136931,1758588726252,-1999.99,0.000225,2]
[387136932,1758588726262,-34914.93513063,0.000225,2]
[387136933,1758588726275,-5514.0,0.000225,3]
[387136934,1758588726285,-356.5,0.00022507,2]
[387136935,1758588726295,-1000.0,0.00022512,2]
[387136936,1758588726304,-2000.0,0.00022516,2]
[387136937,1758588726314,-2000.0,0.00022516,2]
[387136938,1758588726323,-1714.1544707,0.00022521,2]
[387136939,1758588726333,-150.0,0.00022523,2]
[387136940,1758588726343,-174.54391,0.0002253,2]
[387136941,1758588726353,-1000.0,0.0002256,2]
[387136942,1758588726363,-1000.0,0.000226,2]
[387136943,1758588726372,-1714.1544707,0.00022603,2]
[387136944,1758588726382,-1000.0,0.00022616,2]
[387136945,1758588726391,-600.0,0.00022658,2]
[387136946,1758588726401,-1714.1544707,0.00022685,2]
[387136947,1758588726410,-566.73827642,0.00022687,2]
[387136948,1758588726419,-384.0,0.000227,2]
[387136949,1758588726432,-243.0,0.000227,2]
[387136950,1758588726442,-514.58371014,0.0002271,2]
[387136951,1758588726452,-267.57787126,0.00022716,6]
[387136952,1758588726461,-1000.0,0.00022716,2]
[387136953,1758588726471,-400.0,0.00022732,2]
[387136954,1758588726480,-206.34,0.00022732,2]
[387136955,1758588726490,-500.0,0.00022733,2]
[387136956,1758588726500,-150.0,0.00022733,2]
[387136957,1758588726510,-150.0,0.00022733,2]
[387136958,1758588726519,-500.0,0.00022733,2]
[387136959,1758588726529,-1741.0,0.00022733,2]
[387136960,1758588726538,-496.0,0.00022733,2]
[387136961,1758588726548,-160.95700451,0.00022733,2]
[387136962,1758588726557,-500.0,0.00022733,2]
[387136963,1758588726567,-539.0,0.00022733,2]
[387136964,1758588726577,-226.0,0.00022733,2]
[387136965,1758588726587,-522.21614281,0.00022733,2]
[387136966,1758588726596,-400.0,0.00022733,2]
[387136967,1758588726606,-553.8,0.00022733,2]
[387136968,1758588726616,-400.0,0.00022733,2]
[387136969,1758588726626,-400.0,0.00022733,2]
[387136970,1758588726636,-400.0,0.00022733,2]
[387136971,1758588726646,-739.8,0.00022733,2]
[387136972,1758588726655,-631.13,0.00022733,2]
[387136973,1758588726665,-400.0,0.00022733,2]
[387136974,1758588726675,-424.89,0.00022733,2]
[387136975,1758588726686,-400.0,0.00022733,2]
[387136976,1758588726696,-400.0,0.00022733,2]
[387136977,1758588726707,-400.0,0.00022733,2]
[387136978,1758588726717,-400.0,0.00022733,2]
[387136979,1758588726726,-455.09,0.00022733,2]
[387136980,1758588726736,-400.0,0.00022736,2]
[387136981,1758588726746,-470.88,0.00022737,2]
[387136982,1758588726756,-445.49,0.00022737,2]
[387136983,1758588726766,-433.86,0.00022737,2]
[387136984,1758588726775,-400.0,0.00022737,2]
[387136985,1758588726785,-400.0,0.00022737,2]
[387136986,1758588726795,-400.0,0.00022737,2]
[387136987,1758588726805,-400.0,0.00022737,2]
[387136988,1758588726814,-393.76,0.00022737,2]
[387136989,1758588726824,-439.82,0.00022737,2]
[387136990,1758588726834,-400.0,0.00022737,2]
[387136991,1758588726844,-417.58,0.00022737,2]
[387136992,1758588726854,-400.0,0.00022737,2]
[387136993,1758588726863,-400.0,0.00022737,2]
[387136994,1758588726874,-400.0,0.00022737,2]
[387136995,1758588726883,-400.0,0.00022737,2]
[387136996,1758588726894,-400.0,0.00022737,2]
[387136997,1758588726903,-383.54,0.00022737,2]
[387136998,1758588726913,-400.0,0.00022737,2]
[387136999,1758588726922,-729.73,0.00022737,2]
[387137000,1758588726933,-400.0,0.00022737,2]
[387137001,1758588726943,-1262.42,0.00022737,2]
[387137002,1758588726952,-241.14,0.00022737,2]
[387137003,1758588726962,-400.0,0.00022737,2]
[387137004,1758588726972,-402.51,0.00022737,2]
[387137005,1758588726981,-400.0,0.00022737,2]
[387137006,1758588726991,-796.01,0.00022737,2]
[387137007,1758588727001,-182.69,0.00022737,2]
[387137008,1758588727010,-431.35,0.00022737,2]
[387137009,1758588727020,-2335.81,0.00022737,2]
[387137010,1758588727126,-400.0,0.00022737,2]
[387137011,1758588727137,-1029.46,0.00022737,2]
[387137012,1758588727147,-465.65,0.00022737,2]
[387137013,1758588727156,-400.0,0.00022737,2]
[387137014,1758588727165,-1832.67,0.00022737,2]
[387137015,1758588727175,-1616.25,0.00022737,2]
[387137016,1758588727186,-400.0,0.00022737,2]
[387137017,1758588727195,-400.0,0.00022737,2]
[387137018,1758588727205,-836.01,0.00022737,2]
[387137019,1758588727214,-400.0,0.00022737,2]
[387137020,1758588727224,-400.0,0.00022737,2]
[387137021,1758588727233,-400.0,0.00022737,2]
[387137022,1758588727242,-400.0,0.00022737,2]
[387137023,1758588727251,-1061.09,0.00022737,2]
[387137024,1758588727260,-522.0,0.00022737,2]
[387137025,1758588727269,-400.0,0.00022737,2]
[387137026,1758588727278,-3384.62,0.00022737,2]
[387137027,1758588727287,-452.83,0.00022737,2]
[387137028,1758588727296,-2060.76,0.00022737,2]
[387137029,1758588727305,-530.11,0.00022737,2]